bitfinex-derivatives/quotes_BNBF0:USTF0_20250708
["timestamp","ask_amount","ask_price","bid_price","bid_amount"]
[1751940671166,1.6698998,658.91,657.85,2.28055607]
[1751940672268,1.6698998,658.91,657.87,2.28055607]
[1751940673269,1.6698998,658.87,657.98,2.28055607]
[1751940674372,1.6698998,658.86,657.99,2.28055607]
[1751940675367,1.6698998,658.86,658.01,2.28055607]
[1751940676272,1.6698998,658.86,658.03,2.28055607]
[1751940677273,1.6698998,658.85,658.05,2.28055607]
[1751940678271,2.29662931,658.95,658.05,2.28055607]
[1751940678569,1.68812535,658.85,658.07,2.28055607]
[1751940679271,1.68812535,658.84,658.09,2.28055607]
[1751940681173,1.68812535,658.84,658.1,2.28055607]
[1751940683277,1.68812535,658.84,658.11,2.28055607]
[1751940684173,1.68812535,658.84,658.12,2.28055607]
[1751940685277,1.68812535,658.83,658.12,2.28055607]
[1751940685978,1.68812535,658.86,658.07,2.28055607]
[1751940687078,3.98475466,658.88,658.02,2.28055607]
[1751940687378,2.70887031,658.87,658.03,2.28055607]
[1751940687577,1.68812535,658.88,658.02,2.28055607]
[1751940687878,1.68812535,658.88,658.04,2.17]
[1751940689281,1.68812535,658.87,658.04,2.17]
[1751940691182,1.68812535,658.86,658.04,4.45055607]
[1751940692278,1.68812535,658.86,658.05,2.28055607]
[1751940693283,1.68812535,658.85,658.05,2.28055607]
[1751940695981,1.68812535,658.84,658.07,2.28055607]
[1751940696883,1.68812535,658.82,658.12,2.28055607]
[1751940697281,1.68812535,658.82,658.11,2.28055607]
[1751940697481,1.68812535,658.8,658.15,2.28055607]
[1751940697986,1.68812535,658.8,658.16,2.28055607]
[1751940698188,1.68812535,658.82,658.11,2.28055607]
[1751940700687,1.68812535,658.82,658.1,2.28055607]
[1751940702592,1.68812535,658.82,658.11,2.28055607]
[1751940705191,1.68812535,658.82,658.12,2.28055607]
[1751940706294,1.68812535,658.81,658.12,2.28055607]
[1751940706995,1.68812535,658.82,658.1,2.28055607]
[1751940707493,1.68812535,658.82,658.11,2.28055607]
[1751940707894,1.68812535,658.81,658.13,2.28055607]
[1751940709193,1.68812535,658.8,658.13,2.28055607]
[1751940710298,1.68812535,658.79,658.15,2.28055607]
[1751940710594,1.68812535,658.79,658.16,2.28055607]
[1751940710798,1.68812535,658.79,658.17,2.28055607]
[1751940712298,1.68812535,658.78,658.17,2.28055607]
[1751940713194,1.68812535,658.78,658.18,2.28055607]
[1751940713694,1.68812535,658.78,658.17,2.28055607]
[1751940714194,1.68812535,658.78,658.18,2.28055607]
[1751940714398,1.68812535,658.77,658.19,2.28055607]
[1751940715398,1.69370824,658.77,658.19,2.28055607]
[1751940716198,1.69370824,658.76,658.2,2.28055607]
[1751940716799,1.69370824,658.76,658.22,2.28055607]
[1751940717295,1.69370824,658.75,658.22,2.28055607]
[1751940718495,1.69370824,658.74,658.23,2.28055607]
[1751940719498,1.69370824,658.73,658.24,2.28055607]
[1751940720099,1.69370824,658.73,658.14,3.4208341]
[1751940720100,1.69370824,658.73,658.25,2.28055607]
[1751940720300,1.69370824,658.82,658.07,2.28055607]
[1751940720500,1.69370824,658.82,658.08,2.28055607]
[1751940720699,2.78896051,658.98,658.04,2.17]
[1751940720700,1.69370824,658.87,658.12,2.28055607]
[1751940720899,1.69370824,658.85,658.11,2.28055607]
[1751940721199,1.69370824,658.88,658.13,2.28055607]
[1751940721501,1.69370824,658.91,658.16,2.28055607]
[1751940721701,1.69370824,658.93,658.19,2.28055607]
[1751940721899,1.69370824,658.93,658.2,2.28055607]
[1751940722401,1.69370824,658.94,658.19,2.28055607]
[1751940723399,1.69370824,658.95,658.18,2.28055607]
[1751940724504,1.69370824,658.96,658.17,2.28055607]
[1751940724897,1.69370824,658.92,658.26,2.28055607]
[1751940725399,1.69370824,658.93,658.25,2.28055607]
[1751940726403,1.69370824,658.94,658.25,2.28055607]
[1751940727305,1.69370824,658.94,658.24,2.28055607]
[1751940728306,1.69370824,658.95,658.24,2.28055607]
[1751940729505,1.69370824,658.95,658.09,3.4208341]
[1751940729506,1.69370824,658.95,658.23,2.28055607]
[1751940730105,1.69370824,658.93,658.29,2.28055607]
[1751940730301,1.69370824,658.93,658.28,2.28055607]
[1751940730505,1.69370824,658.93,658.29,2.28055607]
[1751940730704,1.69370824,658.91,658.33,2.28055607]
[1751940731305,1.69370824,658.92,658.32,2.28055607]
[1751940731807,1.69370824,658.97,658.29,2.28055607]
[1751940734407,1.69370824,658.98,658.29,2.28055607]
[1751940735312,1.69370824,658.98,658.28,2.28055607]
[1751940738422,1.69370824,658.99,658.28,2.28055607]
[1751940739519,1.69370824,658.99,658.27,2.28055607]
[1751940739823,1.69370824,659.0,658.25,2.28055607]
[1751940740123,1.69370824,659.01,658.22,2.28055607]
[1751940740518,1.69370824,659.01,658.23,2.044]
[1751940740920,1.69370824,659.02,658.23,2.044]
[1751940741325,1.69370824,659.01,658.23,2.044]
[1751940741522,1.69370824,659.0,658.23,4.32455607]
[1751940742322,1.69370824,659.0,658.23,2.044]
[1751940742622,1.69370824,659.0,658.23,4.32455607]
[1751940743022,1.69370824,659.0,658.23,2.044]
[1751940744225,1.69370824,659.01,658.23,2.044]
[1751940747426,1.69370824,659.0,658.23,2.044]
[1751940748627,1.69370824,658.98,658.26,2.28055607]
[1751940749227,1.69370824,658.98,658.23,2.044]
[1751940749228,1.69370824,658.97,658.28,2.28055607]
[1751940749424,1.69370824,658.98,658.26,2.28055607]
[1751940751025,1.69370824,658.98,658.27,2.28055607]
[1751940753728,1.69370824,658.97,658.23,2.044]
[1751940754130,1.69370824,658.96,658.23,2.044]
[1751940755532,1.69370824,658.95,658.23,2.044]
[1751940755732,1.69370824,658.9,658.23,2.044]
[1751940757632,1.69370824,658.85,658.23,2.044]
[1751940757832,1.69370824,658.84,658.23,2.044]
[1751940758636,1.69370824,658.83,658.23,2.044]
[1751940759435,1.69370824,658.82,658.23,2.044]
[1751940760336,1.69370824,658.81,658.23,2.044]
[1751940760832,1.69370824,658.8,658.23,2.044]
[1751940761440,1.69370824,658.79,658.23,2.044]
[1751940763538,1.69370824,658.71,658.23,2.044]
[1751940764442,1.69370824,658.72,658.23,2.044]
[1751940765444,1.69370824,658.73,658.23,2.044]
[1751940766241,1.69370824,658.74,658.23,2.044]
[1751940773041,1.69370824,658.73,658.23,2.044]
[1751940774548,1.69370824,658.74,658.23,2.044]
[1751940774945,1.69370824,658.73,658.23,2.044]
[1751940778254,1.69370824,658.74,658.23,2.044]
[1751940780053,1.69370824,658.76,658.23,2.044]
[1751940782656,1.69370824,658.76,657.85,2.28055607]
[1751940783253,1.69370824,658.76,657.84,2.28055607]
[1751940784458,1.69370824,658.76,657.85,2.28055607]
[1751940785058,1.69370824,658.76,657.84,2.28055607]
[1751940785261,1.69370824,658.76,657.85,1.557]
[1751940786860,1.69370824,658.7,657.85,1.557]
[1751940788062,1.69370824,658.69,657.85,1.557]
[1751940790464,1.69370824,658.7,657.85,1.557]
[1751940791461,1.69370824,658.67,657.85,1.557]
[1751940792262,1.69370824,658.68,657.85,1.557]
[1751940797071,1.69370824,658.67,657.85,1.557]
[1751940801469,1.69370824,658.68,657.85,1.557]
[1751940802374,1.69370824,658.67,657.85,1.557]
[1751940804372,1.69370824,658.66,657.85,1.557]
[1751940807976,1.68740671,658.65,657.85,1.557]
[1751940809675,1.68740671,658.64,657.85,1.557]
[1751940811178,1.68740671,658.61,657.85,1.557]
[1751940811480,1.68740671,658.61,657.85,3.83755607]
[1751940811680,1.68740671,658.61,657.86,2.28055607]
[1751940812379,1.68740671,658.6,657.87,2.28055607]
[1751940813180,1.68740671,658.64,657.85,1.557]
[1751940813485,1.68740671,658.63,657.85,1.557]
[1751940816285,1.68740671,658.62,657.85,1.557]
[1751940816482,1.68740671,658.65,657.85,1.557]
[1751940816983,1.68740671,658.61,657.85,1.557]
[1751940817382,1.68740671,658.6,657.85,1.557]
[1751940820385,1.68740671,658.59,657.85,1.557]
[1751940820589,1.68740671,658.6,657.85,1.557]
[1751940820791,2.7803985,658.74,657.85,1.557]
[1751940820992,1.6916604,658.6,657.85,1.557]
[1751940821494,1.6916604,658.59,657.85,1.557]
[1751940822188,1.6916604,658.58,657.85,1.557]
[1751940822993,1.6916604,658.59,657.85,1.557]
[1751940823290,1.6916604,658.58,657.85,1.557]
[1751940823690,1.6916604,658.56,657.85,1.557]
[1751940824590,1.6916604,658.57,657.85,1.557]
[1751940825190,1.6916604,658.59,657.85,1.557]
[1751940827193,1.6916604,658.64,657.85,1.557]
[1751940827399,1.6916604,658.62,657.85,1.557]
[1751940827894,1.6916604,658.48,657.85,1.557]
[1751940828094,1.6916604,658.42,657.85,1.557]
[1751940828294,1.6916604,658.39,657.85,1.557]
[1751940828497,1.6916604,658.4,657.85,1.557]
[1751940829495,1.6916604,658.42,657.85,1.557]
[1751940829996,5.65349914,659.64,657.85,1.557]
[1751940829997,1.6916604,658.5,657.85,1.557]
[1751940830199,1.6916604,658.49,657.85,1.557]
[1751940830501,4.47403724,658.5,657.85,1.557]
[1751940830797,1.6916604,658.44,657.85,1.557]
[1751940831004,1.6916604,658.43,657.85,1.557]
[1751940831301,1.6916604,658.44,657.85,1.557]
[1751940831802,1.6916604,658.42,657.85,1.557]
[1751940832497,1.6916604,658.43,657.85,1.557]
[1751940834399,1.6916604,658.42,657.85,1.557]
[1751940834599,1.6916604,658.41,657.85,1.557]
[1751940835405,1.6916604,658.39,657.85,1.557]
[1751940835603,1.6916604,658.35,657.85,1.557]
[1751940839409,1.6916604,658.35,657.71,0.26440454]
[1751940839705,4.00365264,658.35,657.71,0.26440454]
[1751940839905,2.31199224,658.34,657.71,0.26440454]
[1751940840108,1.02925552,658.34,657.71,0.26440454]
[1751940840306,1.6916604,658.35,657.71,0.26440454]
[1751940841715,0.46940746,658.45,657.71,0.26440454]
[1751940841913,1.02925552,658.49,657.71,0.26440454]
[1751940842212,1.02925552,658.48,657.71,0.26440454]
[1751940842415,1.02925552,658.49,657.72,1.513]
[1751940842608,0.26440454,658.5,657.72,1.513]
[1751940842609,1.02925552,658.48,657.72,1.513]
[1751940842914,1.02503102,658.49,657.72,1.513]
[1751940843108,1.02503102,658.48,657.72,1.513]
[1751940843408,1.02503102,658.49,657.72,1.513]
[1751940843611,1.75207923,659.01,657.72,1.513]
[1751940843612,2.77711025,659.0,657.72,1.513]
[1751940843810,0.26439048,658.62,657.72,1.513]
[1751940844115,2.30776774,658.98,657.72,1.513]
[1751940844311,0.26433726,658.62,657.72,1.513]
[1751940844812,1.68771738,658.53,657.72,1.513]
[1751940845015,1.68771738,658.52,657.72,1.513]
[1751940845718,1.68771738,658.54,657.72,1.513]
[1751940845925,1.68771738,658.56,657.72,1.513]
[1751940846326,1.68771738,658.54,657.72,1.513]
[1751940846628,3.99548512,658.59,657.72,1.513]
[1751940846821,1.02503102,658.58,657.72,1.513]
[1751940847023,1.68771738,658.62,657.72,1.513]
[1751940847923,1.02572398,658.61,657.72,1.513]
[1751940848522,1.02572398,658.62,657.72,1.513]
[1751940848722,1.68847579,658.63,657.72,1.513]
[1751940849822,1.68847579,658.62,657.72,1.513]
[1751940850024,1.68847579,658.63,657.72,1.513]
[1751940851526,1.68847579,658.62,657.72,1.513]
[1751940853629,1.68847579,658.63,657.72,1.513]
[1751940854028,1.68863564,658.63,657.72,1.513]
[1751940854633,1.68863564,658.64,657.72,1.513]
[1751940855130,1.68863564,658.63,657.72,1.513]
[1751940855434,1.68863564,658.64,657.72,1.513]
[1751940855935,1.68863564,658.64,657.75,2.26682704]
[1751940856130,1.68863564,658.65,657.75,2.26682704]
[1751940856335,1.68863564,658.63,657.79,2.26682704]
[1751940856536,1.68863564,658.67,657.83,2.26682704]
[1751940856731,1.68863564,658.67,657.84,2.26682704]
[1751940857630,2.3051211,658.7,657.89,2.26682704]
[1751940857832,2.3051211,658.72,657.89,2.26682704]
[1751940858035,1.68863564,658.72,657.89,2.26682704]
[1751940858238,1.68863564,658.72,657.88,2.26682704]
[1751940859638,1.68863564,658.81,657.87,2.26682704]
[1751940860332,2.96788585,658.81,657.86,2.26682704]
[1751940860537,1.68863564,658.81,657.86,2.26682704]
[1751940861436,1.68863564,658.81,657.85,2.26682704]
[1751940861634,1.68863564,658.83,657.81,2.26682704]
[1751940861834,1.68863564,658.82,657.81,2.26682704]
[1751940862237,1.68863564,658.82,657.8,2.26682704]
[1751940863131,1.68863564,658.82,657.79,2.26682704]
[1751940863933,1.68863564,658.83,657.8,2.26682704]
[1751940864233,1.68863564,658.83,657.79,2.26682704]
[1751940865234,1.68863564,658.83,657.78,2.26682704]
[1751940866339,1.68863564,658.83,657.77,2.26682704]
[1751940866638,1.68863564,658.82,657.76,2.26682704]
[1751940868335,1.68863564,658.82,657.75,2.26682704]
[1751940868536,1.68863564,658.83,657.75,2.26682704]
[1751940868840,1.68863564,658.82,657.75,2.26682704]
[1751940869536,1.68863564,658.81,657.79,2.26682704]
[1751940869738,1.68863564,658.81,657.8,2.26682704]
[1751940870439,1.68863564,658.81,657.78,2.26682704]
[1751940870734,1.68863564,658.81,657.79,2.26682704]
[1751940871137,1.68863564,658.81,657.78,2.26682704]
[1751940871441,1.68863564,658.77,657.88,2.26682704]
[1751940873440,1.68863564,658.77,657.87,2.26682704]
[1751940875343,1.68863564,658.78,657.86,2.26682704]
[1751940875542,1.68863564,658.78,657.85,2.26682704]
[1751940876043,1.68863564,658.78,657.86,2.26682704]
[1751940876244,1.68863564,658.78,657.85,2.26682704]
[1751940876740,1.68863564,658.77,657.84,2.26682704]
[1751940876943,3.99511564,658.8,657.78,2.26682704]
[1751940877143,2.30648,658.79,657.78,2.26682704]
[1751940877345,1.68863564,658.8,657.78,2.26682704]
[1751940877844,1.68863564,658.79,657.79,2.26682704]
[1751940878139,1.68863564,658.79,657.78,2.26682704]
[1751940878543,0.46887093,658.9,657.78,2.26682704]
[1751940878544,1.68863564,658.8,657.78,2.26682704]
[1751940880545,1.68863564,658.8,657.77,2.26682704]
[1751940880947,1.68863564,658.81,657.74,2.26682704]
[1751940881947,1.68863564,658.81,657.75,1.48]
[1751940883648,1.68863564,658.8,657.75,1.48]
[1751940883848,1.68863564,658.79,657.75,1.48]
[1751940884245,1.68863564,658.75,657.75,1.48]
[1751940888650,1.02722936,658.74,657.75,1.48]
[1751940888955,1.68863564,658.79,657.75,1.48]
[1751940889352,1.68863564,658.78,657.75,1.48]
[1751940889650,1.68863564,658.74,657.75,1.48]
[1751940893355,1.68863564,658.73,657.75,1.48]
[1751940894053,1.68863564,658.77,657.75,1.48]
[1751940894457,1.68863564,658.76,657.75,1.48]
[1751940894952,1.68863564,658.81,657.71,0.26440454]
[1751940895151,1.68863564,658.79,657.71,0.26440454]
[1751940895858,3.99265066,658.79,657.71,0.26440454]
[1751940896157,2.30401502,658.78,657.71,0.26440454]
[1751940896355,1.68863564,658.79,657.71,0.26440454]
[1751940897355,1.68863564,658.78,657.72,2.099]
[1751940898857,1.68863564,658.77,657.72,2.099]
[1751940899452,1.68863564,658.78,657.72,2.099]
[1751940899655,1.68863564,658.77,657.72,2.099]
[1751940899955,1.68863564,658.8,657.72,2.099]
[1751940901361,1.68863564,658.81,657.72,2.099]
[1751940902157,1.68863564,658.8,657.72,2.099]
[1751940902458,1.69209659,658.79,657.74,2.26682704]
[1751940904964,1.69209659,658.75,657.85,2.26682704]
[1751940905365,1.69209659,658.74,657.86,2.26682704]
[1751940906165,1.69209659,658.71,657.93,2.26682704]
[1751940906366,1.69209659,658.75,657.98,2.26682704]
[1751940906766,1.69209659,658.74,657.97,2.26682704]
[1751940907164,1.69209659,658.74,657.98,2.26682704]
[1751940909067,1.69209659,658.73,658.0,2.26682704]
[1751940909466,1.69209659,658.72,658.03,2.26682704]
[1751940909663,1.69209659,658.73,658.0,2.26682704]
[1751940910162,1.69209659,658.72,658.0,2.26682704]
[1751940911273,1.69209659,658.72,658.01,2.26682704]
[1751940912173,1.69209659,658.71,658.03,2.26682704]
[1751940912570,1.69209659,658.71,658.01,2.26682704]
[1751940912973,1.69209659,658.72,658.01,2.26682704]
[1751940913176,1.69209659,658.71,658.01,2.26682704]
[1751940913373,1.69209659,658.72,658.02,2.26682704]
[1751940914176,1.69209659,658.71,658.02,2.26682704]
[1751940915271,1.69209659,658.71,658.03,2.26682704]
[1751940916278,1.69498535,658.7,658.03,2.26682704]
[1751940916779,1.69498535,658.7,657.9,3.40024056]
[1751940916780,1.69498535,658.71,658.02,2.26682704]
[1751940916974,1.69498535,658.76,658.06,2.26682704]
[1751940917780,1.69498535,658.76,658.05,2.26682704]
[1751940918079,1.69498535,658.76,658.06,2.26682704]
[1751940918276,1.69498535,658.76,657.91,3.40024056]
[1751940918277,1.69498535,658.76,658.05,2.26682704]
[1751940918580,1.69498535,658.78,658.02,2.26682704]
[1751940920180,1.69498535,658.79,658.03,2.26682704]
[1751940920376,1.69498535,658.81,657.98,2.26682704]
[1751940920880,1.69498535,658.81,657.97,2.26682704]
[1751940921081,1.69498535,658.85,657.89,2.26682704]
[1751940921280,1.69498535,658.83,657.92,2.26682704]
[1751940921482,1.69498535,659.01,658.09,2.26682704]
[1751940922283,1.69498535,659.01,658.1,2.26682704]
[1751940922984,1.69498535,659.02,658.1,2.26682704]
[1751940923282,0.47169756,659.18,658.09,2.26682704]
[1751940923283,1.69498535,659.03,658.09,2.26682704]
[1751940924180,1.69498535,659.04,658.08,2.26682704]
[1751940924685,1.69498535,659.03,658.09,2.26682704]
[1751940925189,1.69498535,659.04,658.08,2.26682704]
[1751940925686,1.69498535,659.05,658.09,2.26682704]
[1751940926287,1.69498535,659.05,657.91,3.40024056]
[1751940926288,1.69498535,659.06,658.1,2.26682704]
[1751940927082,1.69498535,659.06,658.11,2.26682704]
[1751940927382,1.69498535,659.06,658.09,2.26682704]
[1751940927785,1.69498535,659.04,658.11,2.26682704]
[1751940927986,1.69498535,659.05,658.11,2.26682704]
[1751940928282,1.69498535,659.05,658.1,2.26682704]
[1751940928881,1.69498535,659.04,658.12,2.26682704]
[1751940929283,1.69498535,659.04,658.11,2.26682704]
[1751940929886,1.69498535,659.03,658.13,2.26682704]
[1751940930183,1.69147301,659.03,658.13,2.26682704]
[1751940930685,1.69147301,659.04,658.11,2.26682704]
[1751940930885,1.69147301,659.04,658.12,2.26682704]
[1751940931288,1.69147301,659.04,658.1,2.26682704]
[1751940931687,1.69147301,659.04,658.11,2.26682704]
[1751940932088,1.69147301,659.04,658.1,2.26682704]
[1751940932293,1.69147301,659.04,658.09,2.26682704]
[1751940933193,1.69147301,659.05,658.08,2.26682704]
[1751940933590,1.69147301,659.04,658.08,2.26682704]
[1751940933790,1.69147301,659.05,658.08,2.26682704]
[1751940934394,1.69147301,659.05,658.07,2.26682704]
[1751940935194,1.69147301,659.05,658.06,2.26682704]
[1751940935691,1.69147301,659.05,658.07,2.26682704]
[1751940936090,1.69147301,659.05,658.06,2.26682704]
[1751940936494,1.69147301,659.05,658.05,2.26682704]
[1751940937193,1.69147301,659.05,658.04,2.26682704]
[1751940937797,1.69147301,659.08,657.96,2.26682704]
[1751940937996,1.69147301,659.06,657.94,2.26682704]
[1751940938297,1.69147301,659.06,657.93,2.26682704]
[1751940938998,1.69147301,659.06,657.94,2.26682704]
[1751940939195,1.69147301,659.06,657.93,2.26682704]
[1751940941300,1.69147301,659.07,657.93,2.26682704]
[1751940941600,1.69147301,658.98,657.9,2.26682704]
[1751940943599,1.69147301,658.98,657.89,2.26682704]
[1751940943998,1.69147301,658.98,657.9,1.522]
[1751940944302,1.69147301,658.97,657.93,2.26682704]
[1751940944500,1.69147301,658.94,657.9,3.78882704]
[1751940946197,1.69147301,658.94,657.91,2.26682704]
[1751940947101,1.69147301,658.92,657.96,2.26682704]
[1751940947298,1.69147301,658.91,657.97,2.26682704]
[1751940947502,1.69147301,658.88,657.93,2.26682704]
[1751940947697,1.69147301,658.87,657.93,2.26682704]
[1751940948105,1.69147301,658.88,657.93,2.26682704]
[1751940948298,1.69147301,658.91,657.97,2.26682704]
[1751940950302,1.69147301,658.91,657.98,2.26682704]
[1751940950501,1.69147301,658.91,657.99,2.26682704]
[1751940950703,1.69147301,658.91,657.9,1.522]
[1751940950704,1.69147301,658.91,657.98,2.26682704]
[1751940951507,1.69147301,658.91,657.99,2.26682704]
[1751940951707,1.69147301,658.87,657.95,2.26682704]
[1751940953305,1.69147301,658.87,657.96,2.26682704]
[1751940953508,1.69147301,658.86,657.96,2.26682704]
[1751940953708,1.69147301,658.84,657.94,2.26682704]
[1751940954408,1.69147301,658.83,657.94,2.26682704]
[1751940954609,1.69147301,658.83,657.95,2.26682704]
[1751940956204,1.69147301,658.83,657.9,1.522]
[1751940956205,1.69147301,658.84,657.96,2.26682704]
[1751940956609,1.69147301,658.83,657.96,2.26682704]
[1751940957005,1.69147301,658.82,657.99,2.26682704]
[1751940957205,1.69147301,658.82,658.0,2.26682704]
[1751940959206,1.69147301,658.81,658.01,2.26682704]
[1751940959407,1.69147301,658.82,658.01,2.26682704]
[1751940959709,1.69147301,658.81,658.01,2.26682704]
[1751940960206,1.69147301,658.82,658.01,2.26682704]
[1751940960405,1.69147301,658.82,658.02,2.26682704]
[1751940960608,0.47060689,658.92,658.04,2.26682704]
[1751940960609,1.69147301,658.81,658.04,2.26682704]
[1751940961106,1.69147301,658.81,658.03,2.26682704]
[1751940962005,1.69147301,658.81,658.04,2.26682704]
[1751940962209,1.69147301,658.81,658.04,4.38082704]
[1751940963109,1.69147301,658.81,658.05,2.26682704]
[1751940963503,1.69147301,658.82,658.04,2.114]
[1751940963706,1.69147301,658.72,658.04,2.114]
[1751940966409,2.71926534,658.72,658.04,2.114]
[1751940966612,1.69147301,658.72,658.04,2.114]
[1751940969314,1.69147301,658.71,658.04,2.114]
[1751940969714,1.69147301,658.72,658.04,2.114]
[1751940970014,1.69147301,658.71,658.04,2.114]
[1751940970311,1.69147301,658.72,658.04,2.114]
[1751940971314,1.69147301,658.73,658.04,2.114]
[1751940972811,1.69147301,658.77,658.04,2.114]
[1751940973710,1.69147301,658.76,658.04,2.114]
[1751940977416,1.69147301,658.77,658.04,2.114]
[1751940978219,1.69147301,658.78,658.04,2.114]
[1751940978418,1.69147301,658.77,658.04,2.114]
[1751940978614,1.69147301,658.74,658.04,2.114]
[1751940982221,1.69147301,658.73,658.04,2.114]
[1751940983926,1.69147301,658.72,658.04,2.114]
[1751940986828,1.69147301,658.73,658.04,2.114]
[1751940987527,1.69147301,658.72,658.04,2.114]
[1751940988130,1.69147301,658.71,658.04,2.114]
[1751940988930,1.69147301,658.72,658.04,2.114]
[1751940989125,1.69147301,658.69,658.04,2.114]
[1751940989733,1.69147301,658.67,658.04,2.114]
[1751940995730,1.69147301,658.66,658.04,2.114]
[1751940998539,1.69147301,658.65,658.04,2.114]
[1751941000034,1.69147301,658.67,658.04,2.114]
[1751941000335,1.69147301,658.66,657.91,2.26682704]
[1751941001239,1.69147301,658.66,657.92,2.26682704]
[1751941003237,1.69147301,658.66,657.93,4.18382704]
[1751941003540,1.69147301,658.65,657.94,2.26682704]
[1751941004943,1.69147301,658.63,657.97,2.26682704]
[1751941005444,1.02854448,658.73,657.93,1.917]
[1751941005643,1.69147301,658.91,657.93,1.917]
[1751941005939,1.69147301,658.92,657.93,1.917]
[1751941006143,1.69147301,658.97,657.93,1.917]
[1751941006842,1.69147301,659.01,657.93,1.917]
[1751941007642,1.69147301,659.0,657.93,1.917]
[1751941008543,2.7226472,659.0,657.93,1.917]
[1751941008741,1.69147301,659.0,657.93,1.917]
[1751941009140,1.69147301,658.98,657.93,1.917]
[1751941010243,1.69147301,658.97,657.93,1.917]
[1751941014148,1.69147301,658.98,657.93,1.917]
[1751941014749,1.69147301,658.96,657.93,1.917]
[1751941015353,1.69147301,658.91,657.93,1.917]
[1751941016251,1.69147301,658.87,657.97,2.26682704]
[1751941017152,1.69147301,658.88,657.97,2.26682704]
[1751941017556,1.69147301,658.87,657.99,2.26682704]
[1751941018257,1.69147301,658.87,658.0,2.26682704]
[1751941018958,1.69147301,658.86,658.0,2.26682704]
[1751941019157,1.69147301,658.87,658.0,2.26682704]
[1751941019452,1.69147301,658.86,658.0,2.26682704]
[1751941019953,1.69147301,658.87,658.0,2.26682704]
[1751941020754,1.69147301,658.85,658.03,2.26682704]
[1751941021457,1.69147301,658.84,658.01,2.26682704]
[1751941022258,1.69147301,658.82,658.06,2.26682704]
[1751941022857,1.69147301,658.82,658.07,2.26682704]
[1751941024160,1.69147301,658.82,658.06,2.26682704]
[1751941024461,1.69147301,658.83,658.06,2.26682704]
[1751941024658,1.69147301,658.82,658.06,2.26682704]
[1751941026158,2.3147295,658.89,658.06,2.26682704]
[1751941026360,2.78650446,658.95,658.06,2.26682704]
[1751941026765,1.03054392,659.07,657.93,1.917]
[1751941027064,1.69483313,658.83,658.05,2.27003047]
[1751941029668,1.69483313,658.82,657.97,2.27003047]
[1751941029864,1.69483313,658.78,657.94,2.27003047]
[1751941030264,1.69483313,658.78,657.93,2.27003047]
[1751941032467,1.69483313,658.78,657.94,2.27003047]
[1751941032770,1.69483313,658.78,657.95,1.899]
[1751941038773,2.31448404,658.92,657.95,1.899]
[1751941038974,1.69463182,658.78,657.95,1.899]
[1751941039175,1.69463182,658.78,657.95,4.16903047]
[1751941039573,1.69463182,658.74,658.04,2.27003047]
[1751941040173,1.69463182,658.73,658.05,2.27003047]
[1751941040377,1.69463182,658.73,658.07,2.27003047]
[1751941042578,1.69463182,658.75,658.02,2.27003047]
[1751941042979,1.69463182,658.74,658.01,2.27003047]
[1751941043574,1.69463182,658.7,657.95,1.899]
[1751941045687,1.69463182,658.69,657.95,1.899]
[1751941045884,1.69463182,658.67,657.95,1.899]
[1751941046081,1.69463182,658.66,657.95,1.899]
[1751941046485,1.69463182,658.64,657.95,1.899]
[1751941046785,1.69463182,658.58,657.95,1.899]
[1751941047480,1.69463182,658.64,657.95,1.899]
[1751941047681,1.69463182,658.64,657.95,4.16903047]
[1751941048384,1.69463182,658.58,657.95,1.899]
[1751941049381,1.69463182,658.59,657.95,1.899]
[1751941051684,1.69463182,658.57,657.95,1.899]
[1751941051981,1.69463182,658.53,657.95,1.899]
[1751941052288,1.69463182,658.51,657.95,1.899]
[1751941052585,1.69463182,658.52,657.95,1.899]
[1751941052985,1.69463182,658.51,657.95,1.899]
[1751941053483,1.69463182,658.5,657.95,1.899]
[1751941053683,1.69463182,658.49,657.95,1.899]
[1751941053887,1.69463182,658.53,657.95,1.899]
[1751941054183,1.69463182,658.49,657.95,1.899]
[1751941054485,1.69463182,658.52,657.95,1.899]
[1751941054688,1.69463182,658.48,657.95,1.899]
[1751941054987,1.69463182,658.49,657.95,1.899]
[1751941055284,1.69463182,658.5,657.95,1.899]
[1751941055583,1.69463182,658.51,657.95,1.899]
[1751941056082,2.97860704,658.51,657.95,1.899]
[1751941056387,1.69463182,658.51,657.95,1.899]
[1751941056682,1.50107972,658.67,657.95,1.899]
[1751941056683,1.69463182,658.5,657.95,1.899]
[1751941057686,1.69463182,658.51,657.95,1.899]